[Event "FRA-ch Open A-D 2018"]
[Site "Nimes"]
[Date "2018.08.22"]
[Round "5"]
[White "Pigeat, Benoit"]
[Black "Famel, Edouard"]
[Result "1/2-1/2"]
[ECO "B40"]
[WhiteElo "1868"]
[BlackElo "1762"]
[Annotator "NA"]
[PlyCount "86"]
[EventDate "2018.08.18"]
[EventType "tourn"]
[EventCountry "FRA"]
[SourceTitle "playchess.com"]
[Source "ChessBase"]
[SourceQuality "1"]
[TimeControl "40/5400+30:1800+30"]

1. e4 {[%emt 0:00:00]} c5 {[%emt 0:00:00]} 2. Nf3 {[%emt 0:00:24]} e6 {[%emt 0:00:00]} 3. c3 {[%emt 0:00:49]} Nf6 {[%emt 0:00:00]} 4. e5 {[%emt 0:00:27]} Nd5 {[%emt 0:00:02]} 5. d4 {[%emt 0:00:26]} cxd4 {[%emt 0:00:06]} 6. cxd4 {[%emt 0:00:08]} Nc6 $11 {[%emt 0:00:22] LiveBook: 309 Games} 7. Nc3 {[%emt 0:00:30]} d6 {[%emt 0:02:32]} 8. Bb5 {[%emt 0:04:57]} Bd7 {[%emt 0:15:28]} 9. Nxd5 {[%emt 0:03:57]} exd5 {[%emt 0:00:47]} 10. O-O {[%emt 0:00:17]} dxe5 {[%emt 0:00:47]} 11. Bxc6 {[%emt 0:02:58]} bxc6 {[%emt 0:00:35]} 12. Nxe5 {[%emt 0:00:06]} Be7 {[%emt 0:00:31]} 13. Bf4 {[%emt 0:01:26]} O-O {[%emt 0:01:04]} 14. Rc1 {[%emt 0:00:39]} Rc8 {[%emt 0:10:01]} 15. Qa4 {[%emt 0:01:06]} Bf6 {[%emt 0:01:00]} 16. Nxd7 {[%emt 0:02:24]} Qxd7 {[%emt 0:01:16]} 17. h3 {[%emt 0:01:30]} Rfe8 {[%emt 0:01:11]} 18. Rfe1 {[%emt 0:02:28]} Re6 {[%emt 0:12:53]} 19. Re3 {[%emt 0:07:21]} Rxe3 {[%emt 0:10:55]} 20. Bxe3 {[%emt 0:00:13]} h6 {[%emt 0:00:57]} 21. b4 {[%emt 0:00:48]} Qb7 22. b5 {[%emt 0:01:50]} cxb5 {[%emt 0:01:21]} 23. Rxc8+ {[%emt 0:00:04]} Qxc8 {[%emt 0:00:00]} 24. Qxb5 {[%emt 0:00:13]} Qd8 {[%emt 0:07:56]} 25. a4 {[%emt 0:01:03]} Bg5 {[%emt 0:02:29]} 26. Bxg5 {[%emt 0:04:35]} Qxg5 {[%emt 0:01:04]} 27. g3 {[%emt 0:01:21]} Qd8 {[%emt 0:11:37]} 28. a5 {[%emt 0:00:32]} Kh7 {[%emt 0:09:56]} 29. a6 {[%emt 0:00:16]} Qf6 {[%emt 0:02:46]} 30. Qb1+ {[%emt 0:02:27]} g6 {[%emt 0:00:47]} 31. Qb7 {[%emt 0:00:51]} Qxd4 {[%emt 0:01:21]} 32. Qxf7+ {[%emt 0:00:08]} Qg7 {[%emt 0:00:51]} 33. Qb7 {[%emt 0:01:34]} Kh8 {[%emt 0:00:59]} 34. Kg2 {[%emt 0:01:04]} Qd4 {[%emt 0:01:02]} 35. Qc8+ {[%emt 0:00:19]} Kg7 {[%emt 0:00:08]} 36. Qd7+ {[%emt 0:00:15]} Kf6 {[%emt 0:00:32]} 37. Qd6+ {[%emt 0:00:43]} Kf7 {[%emt 0:00:30]} 38. Qd7+ {[%emt 0:01:39]} Kf6 {[%emt 0:00:10]} 39. Qd8+ {[%emt 0:00:13]} Kf7 {[%emt 0:00:08]} 40. Qc7+ {[%emt 0:02:24]} Kf6 {[%emt 0:00:21]} 41. Qh7 {[%emt 0:30:24]} Qb6 {[%emt 0:33:51]} 42. Qh8+ {[%emt 0:01:26]} Kf7 {[%emt 0:01:06]} 43. Qh7+ {[%emt 0:00:58]} Kf6 {[%emt 0:00:50]} 1/2-1/2

[Event "FRA-ch Open A-D 2018"]
[Site "Nimes"]
[Date "2018.08.22"]
[Round "5"]
[White "Dimey, Cyrille"]
[Black "Destic, Pablo"]
[Result "*"]
[WhiteElo "1807"]
[BlackElo "1921"]
[Annotator "NA"]
[PlyCount "75"]
[EventDate "2018.08.18"]
[EventType "tourn"]
[EventCountry "FRA"]
[SourceTitle "playchess.com"]
[Source "ChessBase"]
[SourceQuality "1"]
[TimeControl "40/5400+30:1800+30"]

1. d4 {[%emt 0:00:00]} d5 {[%emt 0:00:00]} 2. c4 {[%emt 0:00:00]} e6 {[%emt 0:00:00]} 3. Nc3 {[%emt 0:00:00]} Nf6 {[%emt 0:00:00]} 4. cxd5 {[%emt 0:00:12]} exd5 {[%emt 0:00:00]} 5. Bg5 {[%emt 0:00:09]} Be7 {[%emt 0:00:32]} 6. e3 {[%emt 0:00:06]} c6 {[%emt 0:01:23]} 7. Bd3 {[%emt 0:00:06]} Ne4 {[%emt 0:06:46]} 8. Bxe7 {[%emt 0:01:12]} Qxe7 {[%emt 0:00:03]} 9. Qc2 {[%emt 0:02:37]} Nd6 {[%emt 0:04:10]} 10. Nf3 {[%emt 0:02:55]} Nd7 {[%emt 0:03:49]} 11. O-O {[%emt 0:02:06]} Nf6 {[%emt 0:06:25]} 12. b4 {[%emt 0:08:54]} Nfe4 {[%emt 0:06:54]} 13. a4 {[%emt 0:10:07]} O-O {[%emt 0:13:29]} 14. b5 {[%emt 0:05:57]} Nxc3 {[%emt 0:05:32]} 15. Qxc3 {[%emt 0:00:34]} cxb5 {[%emt 0:00:42]} 16. axb5 {[%emt 0:00:18]} Be6 {[%emt 0:00:45]} 17. Qb4 {[%emt 0:07:30]} Rfc8 {[%emt 0:02:18]} 18. Rfc1 {[%emt 0:02:00]} Rxc1+ {[%emt 0:02:11]} 19. Rxc1 {[%emt 0:00:06]} Rc8 {[%emt 0:00:18]} 20. Rxc8+ {[%emt 0:11:55]} Nxc8 {[%emt 0:04:38]} 21. Qc5 {[%emt 0:01:57]} Qd8 {[%emt 0:06:17]} 22. h3 {[%emt 0:06:37]} f6 {[%emt 0:03:05]} 23. Bc2 {[%emt 0:11:03]} Qd7 {[%emt 0:03:04]} 24. Nd2 {[%emt 0:06:52]} b6 {[%emt 0:02:57]} 25. Qb4 {[%emt 0:00:56]} Nd6 {[%emt 0:01:57]} 26. Bd3 {[%emt 0:00:24]} g6 {[%emt 0:02:25]} 27. Nb1 {[%emt 0:01:55]} Kf7 {[%emt 0:03:58]} 28. Nc3 {[%emt 0:01:03]} Qc7 {[%emt 0:02:05]} 29. Qb3 {[%emt 0:05:30]} Nc4 {[%emt 0:00:34]} 30. Be2 {[%emt 0:04:06]} f5 {[%emt 0:01:16]} 31. Qb4 {[%emt 0:01:39]} Qd6 {[%emt 0:04:52]} 32. Qxd6 {[%emt 0:01:24]} Nxd6 {[%emt 0:01:04]} 33. Bf3 {[%emt 0:00:03]} Ne4 {[%emt 0:00:21]} 34. Nxe4 {[%emt 0:00:17]} dxe4 {[%emt 0:00:31]} 35. Be2 {[%emt 0:00:20]} Ba2 {[%emt 0:02:53]} 36. g4 {[%emt 0:02:21]} Ke6 {[%emt 0:00:25]} 37. gxf5+ {[%emt 0:00:23]} gxf5 {[%emt 0:00:25]} 38. Kg2 {[%emt 0:00:33]} *

[Event "FRA-ch Open A-D 2018"]
[Site "Nimes"]
[Date "2018.08.22"]
[Round "5"]
[White "Alashtar, Aasef"]
[Black "Silvera, Ruben"]
[Result "1-0"]
[ECO "A00"]
[WhiteElo "1724"]
[BlackElo "1688"]
[Annotator "NA"]
[PlyCount "34"]
[EventDate "2018.08.18"]
[EventType "tourn"]
[EventCountry "FRA"]
[SourceTitle "playchess.com"]
[Source "ChessBase"]
[SourceQuality "1"]
[TimeControl "40/5400+30:1800+30"]

1. g3 {[%emt 0:00:00]} e5 {[%emt 0:00:00]} 2. Bg2 {[%emt 0:00:54]} d5 {[%emt 0:00:51]} 3. d3 {[%emt 0:04:11]} Nf6 {[%emt 0:00:42]} 4. Nd2 {[%emt 0:02:11]} Bd6 {[%emt 0:01:37]} 5. e4 {[%emt 0:00:51]} c6 {[%emt 0:00:22]} 6. Ne2 {[%emt 0:03:21]} Na6 {[%emt 0:17:32]} 7. O-O {[%emt 0:02:18]} h5 {[%emt 0:00:21]} 8. exd5 {[%emt 0:12:49]} cxd5 {[%emt 0:00:11]} 9. d4 {[%emt 0:01:36]} h4 {[%emt 0:02:31]} 10. dxe5 {[%emt 0:01:09]} Bxe5 {[%emt 0:00:10]} 11. Nf3 {[%emt 0:01:28]} Bd6 {[%emt 0:12:39]} 12. Nxh4 {[%emt 0:12:06]} Nc5 {[%emt 0:12:04]} 13. Bg5 {[%emt 0:16:24]} Ne6 {[%emt 0:04:44]} 14. Bxf6 {[%emt 0:02:40]} Qxf6 {[%emt 0:00:10]} 15. Qxd5 {[%emt 0:01:22]} Nc7 {[%emt 0:00:20]} 16. Qe4+ {[%emt 0:00:48]} Be6 {[%emt 0:00:47]} 17. Nd4 {[%emt 0:02:34]} Qd8 1-0

[Event "FRA-ch Open A-D 2018"]
[Site "Nimes"]
[Date "2018.08.22"]
[Round "5"]
[White "Rasolo, Loick"]
[Black "Sauret, Jordan"]
[Result "1-0"]
[ECO "C01"]
[WhiteElo "1723"]
[BlackElo "1543"]
[Annotator "NA"]
[PlyCount "65"]
[EventDate "2018.08.18"]
[EventType "tourn"]
[EventCountry "FRA"]
[SourceTitle "playchess.com"]
[Source "ChessBase"]
[SourceQuality "1"]
[TimeControl "40/5400+30:1800+30"]

1. e4 {[%emt 0:00:00]} e6 {[%emt 0:00:00]} 2. d4 {[%emt 0:00:00]} d5 {[%emt 0:01:23]} 3. exd5 {[%emt 0:04:12]} exd5 {[%emt 0:02:36]} 4. Nf3 {[%emt 0:00:53]} Bd6 {[%emt 0:01:41]} 5. Bd3 {[%emt 0:00:52]} Nf6 {[%emt 0:01:54]} 6. O-O {[%emt 0:00:56]} O-O {[%emt 0:01:13]} 7. Bg5 {[%emt 0:00:17]} Bg4 {[%emt 0:01:15]} 8. h3 {[%emt 0:00:20]} Bh5 {[%emt 0:00:43]} 9. g4 {[%emt 0:00:49]} Bg6 {[%emt 0:00:15]} 10. Ne5 {[%emt 0:00:47]} Nbd7 {[%emt 0:04:53]} 11. Nxd7 {[%emt 0:00:26]} Qxd7 {[%emt 0:00:05]} 12. Bxf6 {[%emt 0:00:12]} gxf6 {[%emt 0:00:04]} 13. Qf3 {[%emt 0:01:11]} Kg7 {[%emt 0:02:09]} 14. Nc3 {[%emt 0:02:29]} c6 {[%emt 0:00:27]} 15. Ne2 {[%emt 0:06:33]} Rfe8 {[%emt 0:04:51]} 16. Ng3 {[%emt 0:00:12]} Bxg3 {[%emt 0:02:06]} 17. fxg3 {[%emt 0:01:35]} Qe6 {[%emt 0:01:48]} 18. Rae1 {[%emt 0:00:51]} Be4 {[%emt 0:00:03]} 19. Qf4 {[%emt 0:03:24]} Rad8 {[%emt 0:09:47]} 20. Rf2 {[%emt 0:11:03]} Qd6 {[%emt 0:01:56]} 21. Rfe2 {[%emt 0:02:46]} Qxf4 {[%emt 0:01:31]} 22. gxf4 {[%emt 0:00:15]} f5 {[%emt 0:00:31]} 23. Kf2 {[%emt 0:12:50]} h5 {[%emt 0:00:56]} 24. gxf5 {[%emt 0:04:57]} Kf6 {[%emt 0:00:11]} 25. Bxe4 {[%emt 0:00:14]} dxe4 {[%emt 0:00:15]} 26. Rxe4 {[%emt 0:00:05]} Rxe4 {[%emt 0:02:05]} 27. Rxe4 {[%emt 0:01:00]} Rd5 {[%emt 0:00:54]} 28. Ke3 {[%emt 0:01:58]} Rb5 {[%emt 0:02:20]} 29. b3 {[%emt 0:00:21]} Ra5 {[%emt 0:00:03]} 30. a4 {[%emt 0:00:05]} b5 {[%emt 0:00:10]} 31. Re5 {[%emt 0:00:21]} a6 {[%emt 0:00:28]} 32. Rc5 {[%emt 0:00:44]} h4 {[%emt 0:03:28]} 33. Kd3 {[%emt 0:00:35]} 1-0

[Event "FRA-ch Open A-D 2018"]
[Site "Nimes"]
[Date "2018.08.22"]
[Round "5"]
[White "Lebret, Loriane"]
[Black "Greget, Mathias"]
[Result "0-1"]
[ECO "C00"]
[WhiteElo "1696"]
[BlackElo "1577"]
[Annotator "NA"]
[PlyCount "90"]
[EventDate "2018.08.18"]
[EventType "tourn"]
[EventCountry "FRA"]
[SourceTitle "playchess.com"]
[Source "ChessBase"]
[SourceQuality "1"]
[TimeControl "40/5400+30:1800+30"]

1. e4 {[%emt 0:00:00]} e6 {[%emt 0:00:00]} 2. d4 {[%emt 0:00:00]} d5 {[%emt 0:00:00]} 3. Bd3 {[%emt 0:01:15]} dxe4 {[%emt 0:00:55]} 4. Bxe4 {[%emt 0:00:06]} Nf6 {[%emt 0:00:07]} 5. Bf3 {[%emt 0:00:04]} c5 {[%emt 0:00:50]} 6. Ne2 {[%emt 0:01:55]} Nc6 {[%emt 0:02:22]} 7. c3 {[%emt 0:14:09]} Be7 {[%emt 0:04:09]} 8. O-O {[%emt 0:00:58]} O-O {[%emt 0:00:31]} 9. dxc5 {[%emt 0:01:32]} Ne5 {[%emt 0:02:58]} 10. Nd4 {[%emt 0:05:26]} Nxf3+ {[%emt 0:00:38]} 11. Qxf3 {[%emt 0:00:13]} Bxc5 {[%emt 0:04:29]} 12. Rd1 {[%emt 0:02:22]} Qd5 {[%emt 0:04:37]} 13. Qxd5 {[%emt 0:10:37]} Nxd5 {[%emt 0:00:21]} 14. Nb3 {[%emt 0:02:21]} Be7 {[%emt 0:08:13]} 15. N1d2 {[%emt 0:03:11]} b6 {[%emt 0:06:47]} 16. Nf3 {[%emt 0:02:48]} Rd8 {[%emt 0:04:01]} 17. c4 {[%emt 0:07:04]} Nb4 {[%emt 0:01:32]} 18. Rxd8+ {[%emt 0:01:38]} Bxd8 {[%emt 0:00:06]} 19. Bf4 {[%emt 0:03:26]} Ba6 {[%emt 0:02:05]} 20. c5 {[%emt 0:08:31]} Bc4 {[%emt 0:07:44]} 21. Bd6 {[%emt 0:14:26]} Bxb3 {[%emt 0:07:42]} 22. axb3 {[%emt 0:00:11]} Nd5 {[%emt 0:00:12]} 23. b4 {[%emt 0:02:25]} a5 {[%emt 0:10:54]} 24. c6 {[%emt 0:03:38]} Rc8 {[%emt 0:01:45]} 25. b5 {[%emt 0:02:27]} Bc7 {[%emt 0:02:33]} 26. Bxc7 {[%emt 0:02:15]} Nxc7 {[%emt 0:01:53]} 27. Nd4 {[%emt 0:06:06]} Rd8 {[%emt 0:01:16]} 28. Nf3 {[%emt 0:00:44]} Nxb5 {[%emt 0:00:28]} 29. Rc1 {[%emt 0:01:11]} f6 {[%emt 0:01:01]} 30. Kf1 {[%emt 0:00:14]} e5 {[%emt 0:01:01]} 31. Ke2 {[%emt 0:00:21]} Kf7 {[%emt 0:00:33]} 32. Nd2 {[%emt 0:00:27]} Rc8 {[%emt 0:01:10]} 33. Kd3 {[%emt 0:01:49]} Nd4 {[%emt 0:00:41]} 34. c7 {[%emt 0:01:15]} Ne6 {[%emt 0:00:25]} 35. Rc6 {[%emt 0:01:15]} b5 {[%emt 0:03:13]} 36. Ne4 {[%emt 0:00:48]} Rxc7 {[%emt 0:00:40]} 37. Rb6 {[%emt 0:00:27]} Nc5+ {[%emt 0:00:51]} 38. Ke3 {[%emt 0:00:41]} Nxe4 {[%emt 0:00:42]} 39. Kxe4 {[%emt 0:00:01]} Rc2 {[%emt 0:01:15]} 40. Rb7+ {[%emt 0:00:43]} Kg6 {[%emt 0:00:08]} 41. f4 {[%emt 0:04:26]} exf4 {[%emt 0:00:28]} 42. Rxb5 {[%emt 0:00:40]} Rxg2 {[%emt 0:00:37]} 43. h3 {[%emt 0:01:26]} Rh2 {[%emt 0:01:32]} 44. Kxf4 {[%emt 0:00:34]} Rxh3 {[%emt 0:00:08]} 45. Rxa5 {[%emt 0:00:10]} Rb3 {[%emt 0:00:07]} 0-1

[Event "FRA-ch Open A-D 2018"]
[Site "Nimes"]
[Date "2018.08.22"]
[Round "5"]
[White "Cregut, Marian"]
[Black "Malassagne, Jerome"]
[Result "1-0"]
[ECO "B13"]
[WhiteElo "1638"]
[BlackElo "1721"]
[Annotator "NA"]
[PlyCount "103"]
[EventDate "2018.08.18"]
[EventType "tourn"]
[EventCountry "FRA"]
[SourceTitle "playchess.com"]
[Source "ChessBase"]
[SourceQuality "1"]
[TimeControl "40/5400+30:1800+30"]

1. e4 {[%emt 0:00:00]} c6 {[%emt 0:00:00]} 2. d4 {[%emt 0:00:00]} d5 {[%emt 0:00:00]} 3. exd5 {[%emt 0:00:05]} cxd5 {[%emt 0:00:00]} 4. Bd3 {[%emt 0:00:25]} Nf6 {[%emt 0:01:39]} 5. c3 {[%emt 0:01:21]} Bg4 {[%emt 0:03:17]} 6. Qb3 {[%emt 0:04:24]} Qc8 {[%emt 0:04:19]} 7. Bf4 {[%emt 0:04:30]} Nbd7 {[%emt 0:02:56]} 8. h3 {[%emt 0:03:45]} Bh5 {[%emt 0:00:24]} 9. Nd2 {[%emt 0:01:13]} e6 {[%emt 0:06:05]} 10. Ngf3 {[%emt 0:01:46]} Bxf3 {[%emt 0:10:16]} 11. Nxf3 {[%emt 0:00:58]} Be7 {[%emt 0:04:18]} 12. O-O {[%emt 0:02:51]} O-O {[%emt 0:01:35]} 13. Rfe1 {[%emt 0:02:09]} Nb6 {[%emt 0:13:21]} 14. Rad1 {[%emt 0:05:31]} Nc4 {[%emt 0:07:33]} 15. Bb1 {[%emt 0:13:49]} Nd6 {[%emt 0:12:56]} 16. Ne5 {[%emt 0:05:49]} Rd8 {[%emt 0:07:53]} 17. Qc2 {[%emt 0:02:57]} g6 {[%emt 0:04:45]} 18. f3 {[%emt 0:07:26]} Nh5 {[%emt 0:04:14]} 19. Bh2 {[%emt 0:09:28]} Bh4 {[%emt 0:02:33]} 20. g4 {[%emt 0:06:07]} Ng7 {[%emt 0:02:10]} 21. Re2 {[%emt 0:01:23]} b5 {[%emt 0:02:17]} 22. Qd2 {[%emt 0:03:00]} Be7 {[%emt 0:00:17]} 23. Qf4 {[%emt 0:03:42]} Rf8 {[%emt 0:01:13]} 24. Rg2 {[%emt 0:01:33]} a5 {[%emt 0:01:29]} 25. Bg3 {[%emt 0:01:31]} Ra6 {[%emt 0:01:04]} 26. h4 {[%emt 0:00:49]} Qd8 {[%emt 0:00:21]} 27. Qh6 {[%emt 0:00:57]} Rb6 {[%emt 0:02:36]} 28. Bf4 {[%emt 0:02:02]} b4 {[%emt 0:01:09]} 29. h5 {[%emt 0:00:36]} Nc4 {[%emt 0:02:13]} 30. hxg6 {[%emt 0:00:34]} fxg6 31. Nxg6 {[%emt 0:02:19]} e5 {[%emt 0:01:53]} 32. Nxe7+ {[%emt 0:01:21]} Qxe7 {[%emt 0:00:11]} 33. Qxh7+ {[%emt 0:00:46]} Kf7 {[%emt 0:00:09]} 34. Bh6 {[%emt 0:01:17]} Rg8 {[%emt 0:00:26]} 35. Bxg7 {[%emt 0:01:47]} Rxg7 {[%emt 0:00:04]} 36. Qf5+ {[%emt 0:01:04]} Qf6 {[%emt 0:00:54]} 37. Qd7+ {[%emt 0:02:30]} Kf8 {[%emt 0:00:09]} 38. Qxd5 {[%emt 0:01:02]} Ne3 {[%emt 0:00:27]} 39. Qa8+ {[%emt 0:00:20]} Kf7 {[%emt 0:00:38]} 40. dxe5 {[%emt 0:00:19]} Qe7 {[%emt 0:00:36]} 41. Rd8 {[%emt 0:32:06]} Nxg2 {[%emt 0:07:44]} 42. Bf5 {[%emt 0:00:00]} Rb7 {[%emt 0:11:42]} 43. Kxg2 {[%emt 0:00:00]} bxc3 {[%emt 0:01:21]} 44. Rf8+ {[%emt 0:00:00]} Qxf8 {[%emt 0:00:06]} 45. Qxb7+ {[%emt 0:00:00]} Kg8 {[%emt 0:00:56]} 46. Qb3+ {[%emt 0:00:00]} Kh8 {[%emt 0:00:23]} 47. Kf1 {[%emt 0:00:00]} Rc7 {[%emt 0:05:57]} 48. bxc3 {[%emt 0:00:00]} Qc5 {[%emt 0:01:13]} 49. Qe6 {[%emt 0:00:00]} Qxc3 {[%emt 0:03:53]} 50. Qh6+ {[%emt 0:00:00]} Kg8 {[%emt 0:00:23]} 51. Be6+ {[%emt 0:00:00]} Rf7 {[%emt 0:00:37]} 52. Qg6+ {[%emt 0:00:00]} 1-0

[Event "FRA-ch Open A-D 2018"]
[Site "Nimes"]
[Date "2018.08.22"]
[Round "5"]
[White "Davidou, Delphine"]
[Black "Plumat, Thibaud"]
[Result "1-0"]
[ECO "C42"]
[WhiteElo "1446"]
[BlackElo "1400"]
[Annotator "NA"]
[PlyCount "76"]
[EventDate "2018.08.18"]
[EventType "tourn"]
[EventCountry "FRA"]
[SourceTitle "playchess.com"]
[Source "ChessBase"]
[SourceQuality "1"]
[TimeControl "40/5400+30:1800+30"]

1. e4 {[%emt 0:00:00]} e5 {[%emt 0:04:34]} 2. Nf3 {[%emt 0:00:00]} Nf6 {[%emt 0:00:04]} 3. Nxe5 {[%emt 0:00:03]} d6 {[%emt 0:00:01]} 4. Nf3 {[%emt 0:00:40]} Nxe4 {[%emt 0:00:04]} 5. Nc3 {[%emt 0:01:20]} Nf6 {[%emt 0:00:39]} 6. d4 {[%emt 0:01:23]} d5 {[%emt 0:00:43]} 7. Bg5 {[%emt 0:01:55]} Be7 {[%emt 0:00:04]} 8. Be2 {[%emt 0:01:28]} O-O {[%emt 0:00:04]} 9. O-O {[%emt 0:01:03]} h6 {[%emt 0:01:03]} 10. Bh4 {[%emt 0:01:13]} Bf5 {[%emt 0:00:09]} 11. Re1 {[%emt 0:01:49]} c6 {[%emt 0:01:53]} 12. Bd3 {[%emt 0:03:46]} Bxd3 {[%emt 0:02:56]} 13. Qxd3 {[%emt 0:00:14]} Bb4 {[%emt 0:01:17]} 14. a3 {[%emt 0:03:48]} Ba5 {[%emt 0:00:02]} 15. b4 {[%emt 0:03:06]} Bc7 {[%emt 0:00:02]} 16. Re2 {[%emt 0:04:15]} Nbd7 {[%emt 0:00:24]} 17. Rae1 {[%emt 0:00:26]} Bd6 {[%emt 0:00:03]} 18. Ne5 {[%emt 0:03:12]} Qc7 {[%emt 0:00:23]} 19. Bg3 {[%emt 0:04:09]} Nb6 {[%emt 0:04:07]} 20. b5 {[%emt 0:05:31]} Nh5 {[%emt 0:02:17]} 21. bxc6 {[%emt 0:09:56]} bxc6 {[%emt 0:00:02]} 22. Re3 {[%emt 0:05:30]} Nxg3 {[%emt 0:00:02]} 23. Rxg3 {[%emt 0:00:22]} Rfe8 {[%emt 0:00:34]} 24. Rge3 {[%emt 0:04:01]} f6 {[%emt 0:02:07]} 25. Ng4 {[%emt 0:02:11]} Nc4 {[%emt 0:02:26]} 26. Rxe8+ {[%emt 0:07:44]} Rxe8 {[%emt 0:00:01]} 27. Rxe8+ {[%emt 0:00:12]} Kf7 {[%emt 0:00:16]} 28. Re1 {[%emt 0:04:53]} h5 {[%emt 0:03:35]} 29. Nh6+ gxh6 {[%emt 0:04:19]} 30. Qh7+ {[%emt 0:08:54]} Kf8 {[%emt 0:00:02]} 31. Qxh6+ {[%emt 0:00:30]} Qg7 {[%emt 0:00:47]} 32. Qxh5 {[%emt 0:07:16]} Be7 {[%emt 0:00:01]} 33. Re6 {[%emt 0:03:27]} Nd6 {[%emt 0:01:07]} 34. Na4 {[%emt 0:02:04]} Qf7 {[%emt 0:00:29]} 35. Qh8+ {[%emt 0:02:32]} Qg8 {[%emt 0:00:50]} 36. Qxg8+ {[%emt 0:00:17]} Kxg8 {[%emt 0:00:01]} 37. Rxe7 {[%emt 0:00:09]} a5 {[%emt 0:00:01]} 38. Re6 {[%emt 0:01:16]} Kf7 1-0

[Event "FRA-ch Open A-D 2018"]
[Site "Nimes"]
[Date "2018.08.22"]
[Round "5"]
[White "Leccia, Thomas"]
[Black "Sithisak, Remi"]
[Result "0-1"]
[ECO "B90"]
[WhiteElo "1408"]
[BlackElo "1360"]
[Annotator "NA"]
[PlyCount "84"]
[EventDate "2018.08.18"]
[EventType "tourn"]
[EventCountry "FRA"]
[SourceTitle "playchess.com"]
[Source "ChessBase"]
[SourceQuality "1"]
[TimeControl "40/5400+30:1800+30"]

1. e4 {[%emt 0:00:00]} c5 {[%emt 0:00:00]} 2. Nf3 {[%emt 0:00:00]} d6 {[%emt 0:00:09]} 3. d4 {[%emt 0:00:12]} cxd4 {[%emt 0:00:18]} 4. Nxd4 {[%emt 0:00:24]} Nf6 {[%emt 0:00:20]} 5. Nc3 {[%emt 0:00:16]} a6 {[%emt 0:00:39]} 6. Bc4 {[%emt 0:00:48]} e6 {[%emt 0:00:59]} 7. Bb3 {[%emt 0:00:47]} Be7 {[%emt 0:01:54]} 8. O-O {[%emt 0:03:08]} b5 {[%emt 0:01:56]} 9. a3 {[%emt 0:02:32]} O-O {[%emt 0:02:54]} 10. Be3 {[%emt 0:04:37]} Bd7 {[%emt 0:06:29]} 11. f4 {[%emt 0:13:39]} Qc7 {[%emt 0:03:15]} 12. h3 {[%emt 0:04:44]} Nc6 {[%emt 0:05:39]} 13. Nf3 {[%emt 0:01:14]} e5 {[%emt 0:13:42]} 14. Nd5 {[%emt 0:05:48]} Nxd5 {[%emt 0:04:41]} 15. exd5 {[%emt 0:00:37]} Na5 {[%emt 0:01:47]} 16. Ba2 {[%emt 0:05:06]} Rac8 {[%emt 0:08:10]} 17. Qd2 {[%emt 0:06:42]} Nc4 {[%emt 0:09:48]} 18. Bxc4 {[%emt 0:01:07]} Qxc4 {[%emt 0:00:17]} 19. c3 {[%emt 0:01:17]} e4 {[%emt 0:03:12]} 20. Ne1 {[%emt 0:02:39]} f5 {[%emt 0:05:00]} 21. Rb1 {[%emt 0:04:28]} Bf6 {[%emt 0:08:26]} 22. Nc2 {[%emt 0:01:34]} a5 {[%emt 0:02:21]} 23. Bb6 {[%emt 0:02:28]} Bd8 {[%emt 0:05:53]} 24. Bxd8 {[%emt 0:01:07]} Rfxd8 {[%emt 0:00:09]} 25. Ne3 {[%emt 0:00:39]} Qc5 {[%emt 0:01:43]} 26. Rfe1 {[%emt 0:02:54]} g5 {[%emt 0:05:58]} 27. Qf2 {[%emt 0:01:15]} h6 {[%emt 0:01:38]} 28. fxg5 {[%emt 0:00:34]} hxg5 {[%emt 0:00:06]} 29. Qg3 {[%emt 0:00:08]} Kf7 {[%emt 0:02:23]} 30. Qxg5 {[%emt 0:00:32]} Rh8 {[%emt 0:01:15]} 31. Kh2 {[%emt 0:03:56]} Rcg8 {[%emt 0:01:56]} 32. Qf4 {[%emt 0:00:39]} Rh5 {[%emt 0:00:55]} 33. Rf1 {[%emt 0:12:04]} Ke8 {[%emt 0:01:58]} 34. Qf2 {[%emt 0:07:38]} Rgh8 {[%emt 0:00:24]} 35. Qg3 {[%emt 0:01:02]} f4 {[%emt 0:00:36]} 36. Qxf4 {[%emt 0:01:36]} Bxh3 {[%emt 0:00:11]} 37. Qxe4+ {[%emt 0:01:22]} Kd8 {[%emt 0:00:53]} 38. Rf8+ {[%emt 0:04:59]} Rxf8 39. gxh3 {[%emt 0:00:00]} Rf2+ {[%emt 0:00:39]} 40. Kg3 {[%emt 0:00:00]} Re2 {[%emt 0:00:43]} 41. Kf3 {[%emt 0:29:30]} Rxe3+ {[%emt 0:30:03]} 42. Qxe3 {[%emt 0:00:19]} Rxh3+ {[%emt 0:00:23] Qe4 Qe3+ Kxe3} 0-1

[Event "FRA-ch Open A-D 2018"]
[Site "Nimes"]
[Date "2018.08.22"]
[Round "5"]
[White "Thoreux-Josso, Aaron"]
[Black "Jugeau, Frederic"]
[Result "0-1"]
[ECO "B01"]
[WhiteElo "1399"]
[BlackElo "1409"]
[Annotator "NA"]
[PlyCount "59"]
[EventDate "2018.08.18"]
[EventType "tourn"]
[EventCountry "FRA"]
[SourceTitle "playchess.com"]
[Source "ChessBase"]
[SourceQuality "1"]
[TimeControl "40/5400+30:1800+30"]

1. e4 {[%emt 0:00:00]} d5 {[%emt 0:02:12]} 2. exd5 {[%emt 0:00:00]} Qxd5 {[%emt 0:00:09]} 3. Nc3 {[%emt 0:00:04]} Qa5 {[%emt 0:00:11]} 4. d4 {[%emt 0:00:40]} Nf6 {[%emt 0:00:15]} 5. Bd2 {[%emt 0:01:12]} c6 {[%emt 0:00:17]} 6. h3 {[%emt 0:01:37]} Bf5 {[%emt 0:00:58]} 7. Nf3 {[%emt 0:00:23]} Nbd7 {[%emt 0:02:53]} 8. Bc4 {[%emt 0:01:55]} e6 {[%emt 0:02:34]} 9. O-O {[%emt 0:02:16]} Qc7 {[%emt 0:02:55]} 10. Re1 {[%emt 0:01:55]} Be7 {[%emt 0:16:51]} 11. Ne2 {[%emt 0:05:13]} Bd6 {[%emt 0:10:48]} 12. Qc1 {[%emt 0:05:08]} h6 {[%emt 0:03:11]} 13. Bf4 {[%emt 0:03:56]} g5 {[%emt 0:06:39]} 14. Bxd6 {[%emt 0:01:41]} Qxd6 {[%emt 0:00:15]} 15. Ng3 {[%emt 0:02:08]} O-O-O {[%emt 0:06:17]} 16. c3 {[%emt 0:04:02]} g4 {[%emt 0:05:00]} 17. hxg4 {[%emt 0:01:31]} Bxg4 {[%emt 0:01:49]} 18. Ne5 {[%emt 0:03:52]} Qf8 {[%emt 0:07:06]} 19. Qc2 {[%emt 0:03:28]} Nxe5 {[%emt 0:07:51]} 20. Rxe5 {[%emt 0:04:10]} Nd5 {[%emt 0:03:59]} 21. b4 {[%emt 0:07:52]} f6 {[%emt 0:02:43]} 22. Re4 {[%emt 0:02:53]} Qg7 {[%emt 0:02:07]} 23. b5 {[%emt 0:02:30]} Rhg8 {[%emt 0:02:59]} 24. bxc6 {[%emt 0:01:41]} Bf5 {[%emt 0:01:33]} 25. cxb7+ {[%emt 0:01:06]} Kb8 {[%emt 0:01:19]} 26. Rb1 {[%emt 0:05:25]} h5 {[%emt 0:02:18]} 27. Qe2 {[%emt 0:01:31]} h4 {[%emt 0:01:02]} 28. Rxh4 {[%emt 0:00:23]} Bxb1 {[%emt 0:00:51]} 29. Qxe6 {[%emt 0:01:02]} Rge8 {[%emt 0:01:18]} 30. Qf5 {[%emt 0:00:54]} 0-1